bitfinex-derivatives/quotes_ETHF0:USTF0_20250629
["timestamp","ask_amount","ask_price","bid_price","bid_amount"]
[1751175584833,1.51308,2430.8,2430.7,1.64156815]
[1751175585034,1.51308,2430.8,2430.7,26.38256815]
[1751175585636,1.51308,2430.8,2430.7,1.64156815]
[1751175585934,1.51308,2430.8,2430.7,26.38256815]
[1751175586134,1.51308,2430.8,2430.7,1.64156815]
[1751175586334,1.51308,2430.8,2430.7,26.38256815]
[1751175591233,1.51308,2430.8,2430.7,27.20508815]
[1751175591433,1.51308,2430.8,2430.7,26.38256815]
[1751175593536,1.51308,2430.8,2430.7,27.20508815]
[1751175594941,1.51308,2430.8,2430.7,26.38256815]
[1751175597342,1.51308,2430.8,2430.7,27.20508815]
[1751175600950,0.82248,2430.8,2430.7,30.69976427]
[1751175602355,0.82248,2430.8,2430.7,5.95876427]
[1751175602653,0.82248,2430.8,2430.7,30.69976427]
[1751175603451,3.2078,2431.0,2430.7,29.87724427]
[1751175603651,3.2078,2431.0,2430.9,2.90732612]
[1751175603852,0.82238,2431.2,2431.1,0.82238]
[1751175604154,12.77115885,2431.3,2431.1,25.56338]
[1751175604355,0.82235,2431.2,2431.1,25.56338]
[1751175604653,12.77114885,2431.3,2431.2,0.82235]
[1751175605149,10.30913,2431.3,2431.2,0.82235]
[1751175605554,10.30913,2431.3,2431.1,26.90476]
[1751175606756,10.30913,2431.3,2431.2,0.82235]
[1751175609352,4.03013,2431.3,2431.2,0.82235]
[1751175610356,4.03011,2431.3,2431.2,0.82235]
[1751175612660,4.03011,2431.3,2431.1,28.98963612]
[1751175612959,4.03011,2431.3,2431.2,0.82235]
[1751175615360,0.82231,2431.3,2431.2,0.82235]
[1751175617363,0.82231,2431.3,2431.1,28.98963612]
[1751175617557,0.82235,2431.2,2431.1,28.16727612]
[1751175618161,0.82235,2431.2,2431.1,28.98965612]
[1751175618963,0.82235,2431.2,2431.1,26.0824]
[1751175619462,0.82235,2431.2,2431.1,26.90478]
[1751175620060,0.82235,2431.2,2431.1,26.0824]
[1751175621261,0.82235,2431.2,2431.1,24.741]
[1751175623263,0.82235,2431.2,2431.1,25.56338]
[1751175625967,0.82235,2431.2,2431.1,24.741]
[1751175626969,0.82235,2431.2,2431.1,25.56338]
[1751175627869,0.82235,2431.2,2431.1,24.741]
[1751175633677,0.82235,2431.2,2431.1,25.56338]
[1751175638675,0.82235,2431.2,2431.1,26.92858]
[1751175640576,4.03011,2431.4,2431.3,0.82231]
[1751175640776,4.03011,2431.4,2431.3,2.90718612]
[1751175641076,3.28424885,2431.6,2431.3,26.82187612]
[1751175641278,3.28424885,2431.6,2431.5,2.08487612]
[1751175641578,0.82223,2431.6,2431.5,2.08487612]
[1751175641770,0.82223,2431.6,2431.5,3.41447612]
[1751175644080,0.82223,2431.6,2431.5,4.23672612]
[1751175644680,0.82223,2431.6,2431.5,3.41447612]
[1751175645382,0.82223,2431.6,2431.5,4.23672612]
[1751175651484,3.2078,2431.7,2431.6,0.82221]
[1751175651789,3.2078,2431.7,2431.6,27.00741]
[1751175651990,3.2078,2431.7,2431.6,68.51491]
[1751175652691,4.02998,2431.7,2431.6,68.51391]
[1751175652879,4.02998,2431.7,2431.6,43.77991]
[1751175653086,4.02998,2431.7,2431.6,68.51391]
[1751175655294,3.2078,2431.7,2431.6,68.51391]
[1751175655689,3.2078,2431.7,2431.6,70.59878612]
[1751175666096,2.75917612,2432.0,2431.9,0.82211]
[1751175666292,5.96697612,2432.0,2431.9,25.55411]
[1751175667197,6.78905612,2432.0,2431.9,25.55411]
[1751175670106,3.58125612,2432.0,2431.9,25.55411]
[1751175670307,5.96697612,2432.0,2431.9,25.55411]
[1751175671905,6.78905612,2432.0,2431.9,25.55411]
[1751175675411,0.82214,2431.9,2431.8,0.82212]
[1751175675603,2.90701612,2431.9,2431.8,25.55212]
[1751175676211,2.90701612,2431.9,2431.8,0.82212]
[1751175676410,2.90701612,2431.9,2431.8,25.55212]
[1751175676713,4.27331612,2431.9,2431.8,25.55212]
[1751175677813,2.90701612,2431.9,2431.8,25.55212]
[1751175680906,2.90701612,2431.9,2431.8,0.82212]
[1751175681213,2.90701612,2431.9,2431.8,25.55212]
[1751175682314,6.11481612,2431.9,2431.8,25.55212]
[1751175683009,6.11481612,2431.9,2431.8,0.82212]
[1751175683211,6.11481612,2431.9,2431.8,25.55212]
[1751175684511,6.11481612,2431.9,2431.8,24.73]
[1751175684915,6.11481612,2431.9,2431.8,25.55215]
[1751175685113,0.82215,2431.8,2431.7,1.64156815]
[1751175685313,0.82221,2431.6,2431.4,2.462512]
[1751175685515,1.49755,2431.5,2431.4,0.82226]
[1751175685716,3.58242612,2431.5,2431.4,0.82226]
[1751175686518,0.6753,2431.5,2431.4,0.82226]
[1751175686923,0.6753,2431.5,2431.4,1.49496]
[1751175687220,0.6753,2431.5,2431.4,2.7256873]
[1751175693622,0.6753,2431.5,2431.4,4.8076873]
[1751175693826,2.90710612,2431.6,2431.5,0.82225]
[1751175696227,2.90710612,2431.6,2431.5,2.16875]
[1751175696228,0.82223,2431.6,2431.5,2.16875]
[1751175697828,0.82223,2431.6,2431.5,26.91575]
[1751175701230,0.82223,2431.6,2431.5,67.71575]
[1751175702624,0.82223,2431.6,2431.5,65.547]
[1751175703019,0.82223,2431.6,2431.5,65.548]
[1751175703318,0.82223,2431.6,2431.5,66.37025]
[1751175704025,0.82223,2431.6,2431.5,25.57025]
[1751175704326,0.82225,2431.5,2431.4,2.20845]
[1751175704627,2.90712612,2431.5,2431.4,66.2625]
[1751175704832,2.90712612,2431.5,2431.4,67.08478]
[1751175705036,2.90712612,2431.5,2431.4,26.28478]
[1751175711135,2.90712612,2431.5,2431.4,27.5155073]
[1751175712935,0.82225,2431.5,2431.4,27.5155073]
[1751175715035,0.82225,2431.5,2431.4,26.28478]
[1751175717534,0.82225,2431.5,2431.4,26.27878]
[1751175721039,0.82225,2431.5,2431.4,67.07878]
[1751175725343,0.82225,2431.5,2431.4,68.44698]
[1751175730446,0.82225,2431.5,2431.4,27.64698]
[1751175730642,0.82225,2431.5,2431.4,28.37798]
[1751175733147,0.82225,2431.5,2431.4,30.01954815]
[1751175733541,2.90711612,2431.6,2431.5,0.82225]
[1751175733742,2.90711612,2431.6,2431.5,2.05515972]
[1751175735844,2.90711612,2431.6,2431.5,1.23290972]
[1751175736547,2.90711612,2431.6,2431.5,2.05515972]
[1751175736752,2.90711612,2431.6,2431.5,1.23290972]
[1751175736943,2.90711612,2431.6,2431.5,2.05515972]
[1751175737653,2.90711612,2431.6,2431.5,1.23290972]
[1751175739848,2.90711612,2431.6,2431.5,2.05515972]
[1751175740158,2.90711612,2431.6,2431.5,1.23290972]
[1751175742657,2.90711612,2431.6,2431.5,2.05515972]
[1751175743256,2.90711612,2431.6,2431.5,1.23290972]
[1751175744956,6.11491612,2431.6,2431.5,1.23290972]
[1751175745958,2.90711612,2431.6,2431.5,1.23290972]
[1751175746151,6.11491612,2431.6,2431.5,1.23290972]
[1751175747156,2.90711612,2431.6,2431.5,1.23290972]
[1751175747356,6.11491612,2431.6,2431.5,1.23290972]
[1751175748862,2.90711612,2431.6,2431.5,1.23290972]
[1751175749261,6.11491612,2431.6,2431.5,1.23290972]
[1751175750667,2.90711612,2431.6,2431.5,1.23290972]
[1751175750870,6.11491612,2431.6,2431.5,1.23290972]
[1751175753072,2.90711612,2431.6,2431.5,1.23290972]
[1751175758178,2.90711612,2431.6,2431.5,2.05515972]
[1751175759679,2.90711612,2431.6,2431.5,1.23290972]
[1751175760579,6.11491612,2431.6,2431.5,1.23290972]
[1751175763781,2.90711612,2431.6,2431.5,1.23290972]
[1751175764184,6.11491612,2431.6,2431.5,1.23290972]
[1751175764683,2.90711612,2431.6,2431.5,1.23290972]
[1751175764884,6.11491612,2431.6,2431.5,1.23290972]
[1751175767583,0.82225,2431.5,2431.4,69.16996]
[1751175775091,0.82225,2431.5,2431.4,68.3477]
[1751175776390,0.82225,2431.5,2431.4,69.16998]
[1751175777289,0.82225,2431.5,2431.4,68.3477]
[1751175777688,1.48885,2431.5,2431.4,68.3477]
[1751175777992,1.48885,2431.5,2431.4,0.7135]
[1751175778194,0.82228,2431.4,2431.3,1.64156815]
[1751175778494,0.82228,2431.4,2431.3,26.37556815]
[1751175778796,0.82228,2431.4,2431.3,28.50916815]
[1751175779292,2.90715612,2431.4,2431.3,26.37556815]
[1751175781196,2.90715612,2431.4,2431.3,24.734]
[1751175781397,2.90715612,2431.4,2431.3,25.55631]
[1751175781694,0.82228,2431.4,2431.3,25.55631]
[1751175781895,0.82228,2431.4,2431.3,26.28641]
[1751175782796,3.2078,2431.6,2431.4,0.82226]
[1751175782997,3.2078,2431.6,2431.5,25.55625]
[1751175783193,3.2078,2431.6,2431.5,28.84404494]
[1751175784401,4.03004,2431.6,2431.5,28.84404494]
[1751175785598,3.2078,2431.6,2431.5,28.84404494]
[1751175786300,3.2078,2431.6,2431.5,4.11004494]
[1751175786501,4.03001,2431.6,2431.5,28.84404494]
[1751175787000,0.82221,2431.6,2431.5,28.84404494]
[1751175789303,0.8222,2431.7,2431.6,0.82219]
[1751175789600,0.8222,2431.7,2431.6,4.17897612]
[1751175789799,0.8222,2431.7,2431.6,3.32649494]
[1751175791301,2.90707612,2431.7,2431.6,3.32649494]
[1751175791503,2.90707612,2431.7,2431.6,1.92809494]
[1751175793197,2.90707612,2431.7,2431.6,2.75030494]
[1751175794496,2.90707612,2431.7,2431.6,1.51791]
[1751175794695,0.82221,2431.6,2431.5,27.51931494]
[1751175795802,0.82221,2431.6,2431.5,26.69709494]
[1751175796303,0.82221,2431.6,2431.5,27.51934494]
[1751175801300,6.11488612,2431.7,2431.6,0.82221]
[1751175802106,2.90708612,2431.7,2431.6,0.82221]
[1751175804911,0.82221,2431.6,2431.5,28.98011494]
[1751175808113,0.82221,2431.6,2431.5,31.06499106]
[1751175808311,0.82221,2431.6,2431.5,28.98011494]
[1751175808812,0.82219,2431.7,2431.6,0.82221]
[1751175809014,0.82219,2431.7,2431.6,1.52751]
[1751175812511,0.82219,2431.7,2431.6,0.7053]
[1751175814018,0.82219,2431.7,2431.6,1.52751]
[1751175814916,0.82219,2431.7,2431.6,0.7053]
[1751175815320,0.82219,2431.7,2431.6,1.52751]
[1751175816011,0.82219,2431.7,2431.6,0.7053]
[1751175816213,0.82221,2431.6,2431.5,31.06499106]
[1751175816413,1.52761,2431.6,2431.5,31.06499106]
[1751175819122,1.52761,2431.6,2431.5,29.83259612]
[1751175833728,0.7054,2431.6,2431.5,29.83259612]
[1751175838132,0.8222,2431.7,2431.6,0.82221]
[1751175838333,0.8222,2431.7,2431.6,2.72769932]
[1751175838832,6.80184612,2431.8,2431.7,0.82218]
[1751175840533,0.82218,2431.7,2431.6,2.72767932]
[1751175841134,0.82218,2431.7,2431.6,1.49529]
[1751175841323,0.82218,2431.7,2431.6,2.72766546]
[1751175846539,0.82218,2431.7,2431.6,1.90547546]
[1751175847738,0.82218,2431.7,2431.6,2.72768546]
[1751175861048,0.82218,2431.7,2431.6,4.10638546]
[1751175864351,0.82218,2431.7,2431.6,2.72768546]
[1751175864850,0.82218,2431.7,2431.6,1.90547546]
[1751175865149,0.82218,2431.7,2431.6,2.72768546]
[1751175865746,0.82218,2431.7,2431.6,1.90547546]
[1751175867150,0.82218,2431.7,2431.6,1.23237546]
[1751175867552,2.18068,2431.7,2431.6,1.23237546]
[1751175867748,2.89518,2431.7,2431.6,1.23237546]
[1751175870855,0.82221,2431.6,2431.5,26.36656815]
[1751175871059,3.61828612,2431.6,2431.5,26.36656815]
[1751175876367,3.61828612,2431.6,2431.5,25.95718862]
[1751175877261,3.61828612,2431.6,2431.5,26.77943862]
[1751175877467,3.2078,2431.7,2431.6,0.82221]
[1751175877768,3.2078,2431.7,2431.6,3.42631214]
[1751175882066,3.2078,2431.7,2431.6,3.83577815]
[1751175882266,3.2078,2431.7,2431.6,2.19421]
[1751175886063,0.82221,2431.6,2431.5,2.33636815]
[1751175886265,0.82225,2431.5,2431.4,2.36596815]
[1751175886464,0.82225,2431.5,2431.4,3.18824815]
[1751175887072,0.82225,2431.5,2431.4,2.36596815]
[1751175887370,0.82225,2431.5,2431.4,1.95647403]
[1751175887670,0.82225,2431.5,2431.4,2.77875403]
[1751175888871,3.2078,2431.6,2431.5,0.82225]
[1751175889066,4.02993,2431.9,2431.8,0.82214]
[1751175889268,4.02993,2431.9,2431.8,2.90701612]
[1751175889774,4.02993,2431.9,2431.8,0.82214]
[1751175890073,0.82215,2431.8,2431.7,5.78522612]
[1751175890274,0.82215,2431.8,2431.7,7.0168901]
[1751175890775,0.82215,2431.8,2431.7,4.93201398]
[1751175892075,4.02994,2431.9,2431.8,0.82214]
[1751175893178,0.82214,2431.8,2431.7,4.93202398]
[1751175893377,0.82214,2431.8,2431.7,3.70036]
[1751175898384,4.02993,2431.9,2431.8,0.82214]
[1751175902886,0.82213,2431.9,2431.8,0.82214]
[1751175903191,4.02993,2431.9,2431.8,0.82214]
[1751175903687,0.82213,2431.9,2431.8,0.82214]
[1751175903884,4.02993,2431.9,2431.8,0.82214]
[1751175906586,3.2078,2431.9,2431.8,0.82214]
[1751175906893,0.6927,2432.0,2431.9,0.82211]
[1751175907287,0.6927,2432.0,2431.9,2.24141]
[1751175908189,1.51478,2432.0,2431.9,2.24141]
[1751175908386,0.6927,2432.0,2431.9,2.24141]
[1751175908581,1.51478,2432.0,2431.9,2.24141]
[1751175908893,0.82211,2431.9,2431.8,0.82212]
[1751175909189,1.5148,2432.0,2431.9,0.82211]
[1751175912986,2.08278461,2432.1,2432.0,0.82208]
[1751175913391,2.90482461,2432.1,2432.0,0.82208]
[1751175913587,3.2078,2432.2,2432.1,0.82204]
[1751175913890,3.2078,2432.2,2432.1,2.90482461]
[1751175915391,3.2078,2432.2,2432.1,3.63822461]
[1751175916792,3.2078,2432.2,2432.1,1.55544]
[1751175917393,3.2078,2432.2,2432.1,2.95034]
[1751175921799,6.11256461,2432.3,2432.2,0.82201]
[1751175922502,6.11256461,2432.3,2432.2,1.51611]
[1751175923205,6.11256461,2432.3,2432.2,0.6941]
[1751175923504,0.82201,2432.2,2432.1,2.95033]
[1751175923705,1.52321,2432.2,2432.1,2.95033]
[1751175924708,0.7012,2432.2,2432.1,2.95033]
[1751175926006,1.52321,2432.2,2432.1,2.95033]
[1751175928004,0.7012,2432.2,2432.1,2.95033]
[1751175928307,1.52321,2432.2,2432.1,2.95033]
[1751175928607,1.52321,2432.2,2432.1,1.55543]
[1751175935008,0.7012,2432.2,2432.1,1.55543]
[1751175942209,2.46201885,2432.5,2432.1,0.7334]
[1751175942411,0.6731,2432.4,2432.3,0.82198]
[1751175949623,3.2078,2432.6,2432.5,0.82191]
[1751175949825,6.35941885,2432.9,2432.8,0.82181]
[1751175950016,4.10336476,2433.4,2432.9,2.05444]
[1751175950017,3.28465291,2433.4,2432.9,2.05444]
[1751175950216,3.28465291,2433.4,2433.3,6.11222461]
[1751175950520,2.08278461,2433.6,2433.5,0.82157]
[1751175950725,2.08278461,2433.6,2433.4,0.82158]
[1751175950926,2.90433461,2433.6,2433.3,69.67241]
[1751175951127,0.7147,2433.5,2433.4,0.8216]
[1751175951927,0.7147,2433.5,2433.3,68.8508]
[1751175952133,0.7147,2433.5,2433.3,45.4764]
[1751175952321,2.90438461,2433.4,2433.3,65.637]
[1751175952626,1.5224,2433.4,2433.3,65.637]
[1751175954532,1.5224,2433.4,2433.3,40.8]
[1751175954727,0.82171,2433.1,2433.0,3.2078]
[1751175954934,0.82171,2433.1,2433.0,28.0438]
[1751175955426,1.48561,2433.1,2433.0,28.0438]
[1751175955628,1.48561,2433.1,2433.0,68.8438]
[1751175958123,1.48561,2433.1,2433.0,44.0078]
[1751175958327,1.48561,2433.1,2433.0,28.0478]
[1751175960836,1.48561,2433.1,2433.0,3.2078]
[1751175961136,0.82174,2433.0,2432.9,40.8]
[1751175961337,0.82181,2432.8,2432.7,28.0418]
[1751175961838,0.82181,2432.8,2432.7,68.8418]
[1751175968945,0.82181,2432.8,2432.7,65.634]
[1751175975541,0.82181,2432.8,2432.7,66.85752987]
[1751175977346,0.82181,2432.8,2432.7,66.83952987]
[1751175979353,0.82181,2432.8,2432.7,65.616]
[1751175983153,0.82181,2432.8,2432.7,40.8]
[1751175983357,0.82181,2432.8,2432.7,66.83941477]
[1751175983554,0.82181,2432.8,2432.7,65.611]
[1751175985154,0.82181,2432.8,2432.7,40.8]
[1751175985353,0.82181,2432.8,2432.7,65.609]
[1751175985653,1.50551,2432.8,2432.7,65.609]
[1751175986250,1.50551,2432.8,2432.7,66.83812452]
[1751175987460,1.50551,2432.8,2432.7,65.609]
[1751175991965,1.50551,2432.8,2432.7,40.8]
[1751175992162,1.50551,2432.8,2432.7,67.24156815]
[1751175992962,1.50551,2432.8,2432.7,66.82994748]
[1751175995156,1.50551,2432.8,2432.7,7.48e-06]
[1751175995359,0.82191,2432.5,2432.4,5.670312]
[1751175995562,2.90341757,2432.5,2432.4,30.466312]
[1751175996573,0.82191,2432.5,2432.4,30.466312]
[1751175998874,0.82191,2432.5,2432.4,27.258512]
[1751176001375,0.82191,2432.5,2432.4,24.796]
[1751176006284,0.82191,2432.5,2432.4,26.1653]
[1751176006987,0.82191,2432.5,2432.4,1.3693]
[1751176007282,0.82191,2432.5,2432.4,26.1683]
[1751176011292,0.82191,2432.5,2432.4,66.9683]
[1751176034909,0.82194,2432.4,2432.3,1.63978022]
[1751176035110,1.53154,2432.4,2432.3,24.779]
[1751176035308,1.53154,2432.4,2432.2,1.63978022]
[1751176035309,0.82198,2432.3,2432.2,1.63978022]
[1751176035510,2.90386106,2432.3,2432.2,24.804]
[1751176037018,0.82201,2432.2,2432.1,42.43978022]
[1751176037216,0.82201,2432.2,2432.1,67.24178022]
[1751176039315,0.82201,2432.2,2432.1,65.602]
[1751176046820,0.82201,2432.2,2432.1,67.68388106]
[1751176047117,0.82201,2432.2,2432.1,69.06268106]
[1751176052724,0.82201,2432.2,2432.1,72.27048106]
[1751176053725,0.82201,2432.2,2432.1,69.06268106]
[1751176054220,0.82201,2432.2,2432.1,72.27048106]
[1751176054416,0.82201,2432.2,2432.1,70.1886]
[1751176054617,0.82201,2432.2,2432.1,72.27048106]
[1751176055122,0.82201,2432.2,2432.1,73.91026128]
[1751176056713,0.82201,2432.2,2432.1,70.70246128]
[1751176057224,0.82201,2432.2,2432.1,73.91026128]
[1751176058624,0.82201,2432.2,2432.1,70.70246128]
[1751176058826,0.82201,2432.2,2432.1,73.91026128]
[1751176062124,0.82201,2432.2,2432.1,72.27048106]
[1751176062327,0.82201,2432.2,2432.1,78.58848106]
[1751176063729,0.82201,2432.2,2432.1,79.41052106]
[1751176064132,0.82201,2432.2,2432.1,81.87303306]
[1751176068632,0.82201,2432.2,2432.1,78.66523306]
[1751176068932,0.82201,2432.2,2432.1,81.87303306]
[1751176071933,0.82201,2432.2,2432.1,78.66523306]
[1751176072130,0.82201,2432.2,2432.1,81.87303306]
[1751176072330,0.822,2432.3,2432.2,0.82199]
[1751176072631,0.822,2432.3,2432.2,4.63164983]
[1751176074034,0.822,2432.3,2432.2,7.83944983]
[1751176074635,0.822,2432.3,2432.2,6.19929]
[1751176075137,0.822,2432.3,2432.2,7.83928822]
[1751176077144,0.822,2432.3,2432.2,4.63148822]
[1751176077438,0.822,2432.3,2432.2,7.83928822]
[1751176077734,0.822,2432.3,2432.2,2.99149]
[1751176078437,5.26228,2432.9,2432.4,0.82193]
[1751176078743,0.82189,2432.6,2432.5,27.9798]
[1751176078930,0.82187,2432.7,2432.5,30.43884127]
[1751176079241,0.82187,2432.7,2432.6,2.46113066]
[1751176079743,0.82187,2432.7,2432.6,4.54301172]
[1751176080539,0.82187,2432.7,2432.6,1.63926066]
[1751176080742,2.90375106,2432.7,2432.6,26.41526066]
[1751176080943,4.31675106,2432.7,2432.6,26.41526066]
[1751176082241,4.31675106,2432.7,2432.6,24.776]
[1751176082644,0.82187,2432.6,2432.5,5.66895066]
[1751176082843,1.54247,2432.6,2432.5,30.44295066]
[1751176083338,1.54247,2432.6,2432.5,29.62106066]
[1751176085744,0.7206,2432.6,2432.5,32.52485172]
[1751176086142,1.54953,2432.8,2432.5,31.70294172]
[1751176086345,1.54953,2432.8,2432.7,3.30938928]
[1751176086546,1.54953,2432.8,2432.7,28.90422928]
[1751176087044,1.54953,2432.8,2432.7,27.67672106]
[1751176088250,0.7277,2432.8,2432.7,27.67672106]
[1751176088748,1.54951,2432.8,2432.7,27.67672106]
[1751176088947,0.7277,2432.8,2432.7,27.67672106]
[1751176089451,1.54951,2432.8,2432.7,27.67672106]
[1751176090250,1.54951,2432.8,2432.7,28.90422928]
[1751176092752,1.54951,2432.8,2432.7,32.11202928]
[1751176093150,1.54951,2432.8,2432.7,28.90422928]
[1751176093352,1.54951,2432.8,2432.7,32.11202928]
[1751176095454,1.54951,2432.8,2432.7,4.43530822]
[1751176095854,3.00031,2432.8,2432.7,29.20330822]
[1751176096853,3.00031,2432.8,2432.7,27.9758]
[1751176098154,3.00031,2432.8,2432.7,29.20330822]
[1751176101550,1.54951,2432.8,2432.7,29.20330822]
[1751176103753,1.54951,2432.8,2432.7,4.43530822]
[1751176107061,1.54951,2432.8,2432.7,3.2078]
[1751176107761,1.54951,2432.8,2432.7,4.02964]
[1751176107960,1.54951,2432.8,2432.7,0.82184]
[1751176108152,1.54951,2432.8,2432.7,2.46110066]
[1751176108356,1.54951,2432.8,2432.7,1.63926066]
[1751176108660,1.54951,2432.8,2432.7,2.46110066]
[1751176109863,1.54951,2432.8,2432.7,3.80280066]
[1751176110163,0.8218,2432.9,2432.8,0.82181]
[1751176110357,0.8218,2432.9,2432.8,5.47563782]
[1751176110558,0.82181,2432.8,2432.7,27.22108066]
[1751176111662,0.82181,2432.8,2432.7,28.56278066]
[1751176117067,0.82179,2432.9,2432.8,0.82178]
[1751176117261,0.82179,2432.9,2432.8,2.28568]
[1751176117467,2.08188106,2433.0,2432.8,2.28568]
[1751176117468,0.82177,2433.0,2432.9,0.82177]
[1751176117665,0.82177,2433.0,2432.9,28.97671113]
[1751176119269,4.72833,2433.1,2433.0,0.82174]
[1751176119565,4.72833,2433.1,2433.0,2.20694]
[1751176120062,1.52053,2433.1,2433.0,2.20694]
[1751176120262,0.82173,2433.1,2433.0,2.20694]
[1751176120467,0.82173,2433.1,2433.0,6.21166219]
[1751176120972,0.82173,2433.1,2433.0,6.62078172]
[1751176121169,0.82173,2433.1,2433.0,4.98152106]
[1751176121464,0.82173,2433.1,2433.0,6.62078172]
[1751176121967,0.8217,2433.2,2433.1,0.82169]
[1751176122269,0.8217,2433.2,2433.1,28.18422507]
[1751176123263,53.01890443,2433.8,2433.2,2.05419]
[1751176123459,5.66190443,2433.8,2433.4,3.2078]
[1751176123773,5.66190443,2433.8,2433.5,26.96285]
[1751176123774,0.82154,2433.6,2433.5,26.96285]
[1751176124572,0.82154,2433.6,2433.5,26.1413]
[1751176125068,0.82154,2433.6,2433.5,26.96287]
[1751176125666,0.82154,2433.6,2433.5,0.82157]
[1751176125874,0.82157,2433.5,2433.4,46.46864066]
[1751176126073,6.18012901,2433.8,2433.4,70.42406066]
[1751176126272,0.82153,2433.7,2433.5,2.04763627]
[1751176126462,0.82153,2433.7,2433.6,2.28564]
[1751176126867,0.82153,2433.7,2433.6,1.4641]
[1751176127871,0.82153,2433.7,2433.5,2.04763627]
[1751176127872,0.82154,2433.6,2433.5,2.04763627]
[1751176128168,1.53804,2433.6,2433.5,0.82155]
[1751176129074,0.82157,2433.5,2433.4,71.53856627]
[1751176129272,0.82157,2433.5,2433.4,72.99836627]
[1751176130074,0.7165,2433.6,2433.4,72.17678627]
[1751176130376,0.82157,2433.5,2433.4,72.99837627]
[1751176130668,0.7165,2433.6,2433.4,72.99837627]
[1751176130669,1.53806,2433.6,2433.5,0.82157]
[1751176132372,0.82157,2433.5,2433.4,71.77228]
[1751176132675,0.82157,2433.5,2433.4,44.0078]
[1751176132976,0.82157,2433.5,2433.4,68.7748]
[1751176133374,0.82157,2433.5,2433.4,69.5964]
[1751176133976,1.53805,2433.6,2433.5,0.82157]
[1751176134177,1.53805,2433.6,2433.4,71.05759]
[1751176134474,0.82157,2433.5,2433.4,71.05759]
[1751176135071,0.82157,2433.5,2433.4,70.236]
[1751176135579,0.82157,2433.5,2433.4,71.0576]
[1751176136878,0.82157,2433.5,2433.4,67.8498]
[1751176137375,0.82157,2433.5,2433.4,71.0576]
[1751176137774,0.82157,2433.5,2433.4,67.0282]
[1751176137980,0.82157,2433.5,2433.4,70.236]
[1751176138481,0.82157,2433.5,2433.4,71.0576]
[1751176139076,0.82157,2433.5,2433.4,67.8498]
[1751176140080,0.82157,2433.5,2433.4,71.0576]
[1751176141283,1.53806,2433.6,2433.5,0.82157]
[1751176142985,0.82157,2433.5,2433.4,71.05758]
[1751176144182,0.82153,2433.7,2433.6,0.82154]
[1751176144386,0.82153,2433.7,2433.6,25.57954]
[1751176144882,0.82153,2433.7,2433.6,27.67474]
[1751176146387,0.8215,2433.8,2433.7,0.82149]
[1751176146587,0.8215,2433.8,2433.7,25.57649]
[1751176148688,0.8215,2433.8,2433.7,25.5765]
[1751176149388,0.8215,2433.8,2433.7,24.755]
[1751176152390,0.8215,2433.8,2433.7,25.98108627]
[1751176153191,0.8215,2433.8,2433.7,24.755]
[1751176154189,0.8215,2433.8,2433.7,25.5765]
[1751176156496,0.8215,2433.8,2433.7,24.755]
[1751176158097,3.79382901,2433.8,2433.7,24.755]
[1751176163204,0.8215,2433.7,2433.6,1.63926066]
[1751176163402,2.226,2433.7,2433.6,1.63926066]
[1751176168110,0.82154,2433.6,2433.5,30.41063066]
[1751176168610,0.82154,2433.6,2433.5,29.58906066]
[1751176171411,0.82154,2433.6,2433.5,24.742]
[1751176172011,0.82154,2433.6,2433.5,25.56357]
[1751176174615,2.22603,2433.7,2433.5,27.64356111]
[1751176174913,2.22603,2433.7,2433.6,2.45818656]
[1751176176816,2.22603,2433.7,2433.6,1.63664656]
[1751176177615,2.22603,2433.7,2433.6,2.45818656]
[1751176179017,1.4045,2433.7,2433.6,2.45818656]
[1751176180110,0.6933,2433.7,2433.6,2.45818656]
[1751176181015,2.90147111,2433.8,2433.7,0.8215]
[1751176181216,2.90147111,2433.8,2433.7,1.5435]
[1751176183418,2.07999111,2433.8,2433.7,1.5435]
[1751176188820,3.2078,2434.1,2434.0,0.8214]
[1751176189221,3.9307,2434.1,2434.0,0.8214]
[1751176190023,4.75207,2434.1,2434.0,0.8214]
[1751176190820,3.9307,2434.1,2434.0,0.8214]
[1751176193529,2.80289111,2434.1,2434.0,0.8214]
[1751176194127,0.7229,2434.1,2434.0,0.8214]
[1751176194626,0.7229,2434.1,2434.0,2.8987]
[1751176197234,2.07999111,2434.3,2434.2,0.82133]
[1751176197428,9.04389111,2434.3,2434.2,0.82133]
[1751176198135,9.86519111,2434.3,2434.2,0.82133]
[1751176198832,9.04389111,2434.3,2434.2,0.82133]
[1751176199334,0.6769,2434.3,2434.2,0.82133]
[1751176199535,3.2078,2434.4,2434.3,0.8213]
[1751176200334,3.2078,2434.4,2434.3,1.5397]
[1751176200533,4.02907,2434.4,2434.3,1.5397]
[1751176200735,4.02907,2434.4,2434.3,0.8213]
[1751176202139,0.8213,2434.3,2434.2,2.04848811]
[1751176202435,2.07999111,2434.3,2434.2,2.04848811]
[1751176203135,2.07999111,2434.3,2434.2,0.82131]
[1751176222950,2.90129111,2434.3,2434.2,0.82131]
[1751176223150,2.07999111,2434.3,2434.2,0.82131]
[1751176223350,2.07999111,2434.3,2434.2,2.04848811]
[1751176228752,2.90129111,2434.3,2434.2,2.04848811]
[1751176228952,2.07999111,2434.3,2434.2,2.04848811]
[1751176231159,2.07999111,2434.3,2434.2,0.82131]
[1751176233262,2.90129111,2434.3,2434.2,0.82131]
[1751176233453,2.07999111,2434.3,2434.2,0.82131]
[1751176235259,2.90129111,2434.3,2434.2,0.82131]
[1751176235963,2.07999111,2434.3,2434.2,0.82131]
[1751176241167,2.07999111,2434.3,2434.2,2.04808499]
[1751176243266,0.82129,2434.4,2434.3,0.8213]
[1751176243467,2.90128111,2434.4,2434.3,0.8213]
[1751176246171,2.07999111,2434.4,2434.3,0.8213]
[1751176246372,2.90126111,2434.4,2434.3,0.8213]
[1751176247271,2.07999111,2434.4,2434.3,0.8213]
[1751176249878,2.90126111,2434.4,2434.3,0.8213]